bitfinex/quotes_ETHUSD_20250730
["timestamp","ask_amount","ask_price","bid_price","bid_amount"]
[1753896734667,11.2922,3809.2,3809.1,1.7124]
[1753896735290,11.2922,3809.2,3809.1,1.2803]
[1753896735504,11.2922,3809.2,3809.1,0.04]
[1753896741579,11.2912,3809.2,3809.1,0.04]
[1753896741802,6.311,3809.6,3809.1,0.8143]
[1753896742124,4.2002,3809.5,3809.2,0.4593]
[1753896742630,4.2002,3809.5,3809.1,0.04]
[1753896742631,11.0241,3809.4,3809.1,0.04]
[1753896742794,3.0,3809.2,3809.1,0.04]
[1753896743421,3.9341,3809.2,3809.1,0.04]
[1753896744113,34.4841,3809.2,3809.1,0.04]
[1753896744410,7.05436461,3809.2,3809.1,0.04]
[1753896744708,37.05436461,3809.2,3809.1,0.04]
[1753896746779,7.05436461,3809.2,3809.1,0.04]
[1753896747915,14.14436461,3809.2,3809.1,0.04]
[1753896748815,44.14436461,3809.2,3809.1,0.04]
[1753896749889,44.97346461,3809.2,3809.1,0.04]
[1753896751014,45.21966374,3809.2,3809.1,0.04]
[1753896752218,44.97346461,3809.2,3809.1,0.04]
[1753896752800,45.2196283,3809.2,3809.1,0.04]
[1753896755423,45.2196283,3809.2,3808.7,0.001]
[1753896755424,0.55,3808.8,3808.7,0.001]
[1753896755625,53.99948291,3808.8,3808.7,0.001]
[1753896755827,154.13068291,3808.8,3808.7,0.001]
[1753896755991,155.06478291,3808.8,3808.7,0.001]
[1753896758095,125.06478291,3808.8,3808.7,0.001]
[1753896758429,157.83078291,3808.8,3808.7,0.001]
[1753896758641,0.55,3808.4,3807.1,0.04]
[1753896758800,32.766,3808.7,3807.1,0.04]
[1753896758801,40.07075461,3808.2,3807.1,0.04]
[1753896759127,44.26995461,3808.2,3807.1,0.4993]
[1753896759332,38.5268,3808.2,3807.1,0.04]
[1753896759516,39.4609,3808.2,3807.2,0.4593]
[1753896759722,39.4609,3808.2,3807.3,0.4593]
[1753896759937,39.4609,3808.2,3807.1,0.04]
[1753896759938,45.20405461,3808.2,3807.1,0.04]
[1753896760228,47.77431922,3808.2,3807.1,0.04]
[1753896760536,1.329,3807.8,3807.1,0.04]
[1753896760740,3.55,3807.4,3807.1,0.04]
[1753896760939,3.1312,3807.2,3807.1,0.04]
[1753896761149,10.1412,3807.2,3807.1,0.04]
[1753896761510,11.6106,3807.2,3807.1,0.04]
[1753896761716,13.359,3807.2,3807.1,0.04]
[1753896762125,12.9097,3807.2,3807.1,0.04]
[1753896762326,12.4249,3807.2,3807.1,0.04]
[1753896762799,42.9749,3807.2,3807.1,0.04]
[1753896762927,43.4597,3807.2,3807.1,0.04]
[1753896763138,42.9749,3807.2,3807.1,0.04]
[1753896763633,10.1412,3807.2,3807.1,0.04]
[1753896763812,14.2092,3807.2,3807.1,0.952]
[1753896764209,10.1412,3807.2,3807.1,0.952]
[1753896764413,14.2092,3807.2,3807.1,0.4993]
[1753896764642,14.2092,3807.2,3807.1,0.952]
[1753896764808,10.1412,3807.2,3807.1,0.952]
[1753896765014,14.2092,3807.2,3807.1,0.952]
[1753896765924,10.1412,3807.2,3807.1,0.952]
[1753896766146,14.2092,3807.2,3807.1,0.952]
[1753896766560,11.078,3807.2,3807.1,1.12487]
[1753896767782,11.078,3807.2,3807.1,1.89777]
[1753896767974,11.078,3807.2,3807.1,2.02897]
[1753896769772,7.01,3807.2,3807.1,2.02897]
[1753896770070,4.068,3807.2,3807.1,2.02897]
[1753896771557,6.313,3807.7,3807.1,2.02897]
[1753896771772,6.313,3807.7,3807.6,5.74315461]
[1753896771987,10.38,3807.7,3807.6,6.49795461]
[1753896772147,10.38,3807.7,3807.6,7.44115461]
[1753896774111,10.38,3807.7,3807.6,6.98435461]
[1753896774457,10.38,3807.7,3807.6,7.44115461]
[1753896774656,10.38,3807.7,3807.6,8.19839007]
[1753896776109,10.38,3807.7,3807.6,7.25519007]
[1753896776309,10.38,3807.7,3807.6,6.49795461]
[1753896778213,10.38,3807.7,3807.6,6.98435461]
[1753896778424,10.38,3807.7,3807.6,7.44115461]
[1753896779124,3.0,3808.5,3807.6,7.44115461]
[1753896779426,3.0,3808.5,3808.1,0.7796]
[1753896779427,4.1972,3808.4,3808.1,0.7796]
[1753896780424,0.4537,3808.3,3808.1,0.7796]
[1753896780626,4.066,3808.2,3808.1,0.7796]
[1753896780800,4.5197,3808.2,3808.1,0.7796]
[1753896782139,3.0,3808.5,3808.1,6.52275461]
[1753896782340,4.066,3808.4,3808.1,6.65395461]
[1753896783551,0.8852,3808.3,3807.6,0.765]
[1753896783711,0.1312,3808.0,3807.6,0.765]
[1753896783911,4.065,3807.9,3807.3,0.8962]
[1753896784251,0.4537,3807.8,3807.3,0.8962]
[1753896784405,4.5187,3807.7,3807.3,0.8962]
[1753896786355,4.5187,3807.7,3807.5,5.74315461]
[1753896786656,4.065,3807.7,3807.5,5.74315461]
[1753896788654,4.5187,3807.7,3807.5,5.74315461]
[1753896788841,0.4315,3807.6,3807.2,5.74315461]
[1753896789012,4.4965,3807.5,3807.2,5.74315461]
[1753896789430,0.4537,3807.4,3807.2,5.74315461]
[1753896789662,4.065,3807.3,3807.2,5.74315461]
[1753896795582,4.065,3807.3,3807.1,0.1722]
[1753896795767,4.5187,3807.3,3807.1,5.91535461]
[1753896796654,4.065,3807.3,3807.1,0.041]
[1753896796846,0.4706,3807.2,3807.1,0.041]
[1753896797049,0.9048,3807.2,3807.1,0.041]
[1753896800833,0.91819394,3807.2,3807.1,0.041]
[1753896801038,2.20713939,3807.2,3807.1,0.041]
[1753896802404,1.6957,3807.2,3807.1,0.041]
[1753896802800,7.1412,3807.3,3807.1,5.78415461]
[1753896803006,4.063,3807.2,3807.1,5.78415461]
[1753896803207,4.063,3807.2,3807.1,0.041]
[1753896803389,4.5336,3807.2,3807.1,0.041]
[1753896804804,7.1412,3807.3,3807.1,0.041]
[1753896805005,4.063,3807.2,3807.1,0.041]
[1753896805328,7.01,3807.3,3807.1,5.78415461]
[1753896805529,4.063,3807.2,3807.1,6.45582007]
[1753896805737,4.063,3807.2,3807.1,6.58702007]
[1753896805891,7.01,3807.3,3807.1,7.49822007]
[1753896806085,7.01,3807.3,3807.2,0.4757]
[1753896806289,11.073,3807.3,3807.2,0.4757]
[1753896807031,11.073,3807.3,3807.1,7.02252007]
[1753896807230,11.073,3807.3,3807.1,5.91535461]
[1753896807411,0.4706,3807.2,3807.1,0.041]
[1753896808014,11.5072,3807.3,3807.1,0.041]
[1753896808249,11.073,3807.3,3807.1,0.041]
[1753896808622,11.073,3807.3,3807.2,0.4757]
[1753896808847,11.073,3807.3,3807.2,1.74851546]
[1753896809050,7.01,3807.3,3807.2,1.74851546]
[1753896809276,7.01,3807.3,3807.2,2.57971546]
[1753896809277,11.072,3807.3,3807.2,2.57971546]
[1753896811278,4.062,3807.3,3807.2,2.57971546]
[1753896811701,0.6018,3807.9,3807.2,2.57971546]
[1753896811874,0.1312,3808.0,3807.7,5.74315461]
[1753896812158,13.325,3808.1,3807.8,1.8736]
[1753896812159,4.062,3807.9,3807.8,1.8736]
[1753896812361,4.062,3807.9,3807.8,7.61675461]
[1753896812543,4.062,3807.9,3807.8,7.18125461]
[1753896812860,4.062,3807.9,3807.8,7.94293007]
[1753896814062,4.062,3807.9,3807.8,8.37843007]
[1753896814450,4.061,3808.0,3807.8,8.37843007]
[1753896814642,11.073,3808.1,3807.9,0.4757]
[1753896815058,11.073,3808.1,3808.0,0.1312]
[1753896816168,4.063,3808.1,3808.0,0.1312]
[1753896816531,4.063,3808.1,3808.0,0.96904301]
[1753896820052,0.002,3808.1,3808.0,0.96904301]
[1753896820250,4.062,3808.1,3808.0,1.44474301]
[1753896822771,4.062,3808.1,3808.0,0.96904301]
[1753896823663,0.002,3808.1,3808.0,0.96904301]
[1753896823869,4.061,3808.1,3808.0,0.96904301]
[1753896824768,4.061,3808.1,3808.0,1.44474301]
[1753896825265,4.061,3808.1,3808.0,0.96904301]
[1753896826375,0.002,3808.1,3808.0,0.96904301]
[1753896826887,0.002,3808.1,3808.0,3.62135393]
[1753896827037,0.002,3808.5,3808.2,2.62585412]
[1753896827237,0.002,3808.5,3808.4,9.32732921]
[1753896827737,0.002,3808.5,3808.4,17.31142921]
[1753896829040,6.7761,3809.5,3809.1,0.8188]
[1753896829242,6.7886,3809.5,3809.4,5.74315461]
[1753896829479,10.8466,3809.5,3809.4,5.87435461]
[1753896833057,0.04,3809.9,3809.5,0.7826]
[1753896833268,0.04,3809.9,3809.8,5.74315461]
[1753896833454,0.5156,3809.9,3809.8,5.87435461]
[1753896833885,0.04,3809.9,3809.8,5.87435461]
[1753896834053,0.04,3809.9,3809.8,6.78498665]
[1753896834251,0.04,3809.9,3809.8,9.40979635]
[1753896834457,0.04,3809.9,3809.8,10.66099635]
[1753896834790,0.04,3809.9,3809.8,11.12529635]
[1753896836782,0.04,3809.9,3809.8,15.18129635]
[1753896837087,0.04,3809.9,3809.8,15.73129635]
[1753896837279,0.002,3810.1,3810.0,3.44987191]
[1753896837474,0.002,3810.1,3810.0,8.36639767]
[1753896837687,0.002,3810.1,3810.0,9.42369767]
[1753896838492,0.002,3810.5,3810.4,2.62439638]
[1753896838735,0.002,3810.5,3810.4,9.20029495]
[1753896839033,0.002,3810.5,3810.4,9.76705099]
[1753896839242,0.002,3810.5,3810.4,10.43636645]
[1753896840119,0.002,3810.5,3810.4,7.35017007]
[1753896840308,0.002,3810.5,3810.4,9.97456645]
[1753896840697,0.002,3810.5,3810.4,11.40517007]
[1753896840899,0.002,3810.5,3810.4,14.02956645]
[1753896841226,0.002,3810.5,3810.4,14.49136645]
[1753896841631,0.002,3810.5,3810.4,14.02956645]
[1753896841803,0.002,3810.7,3810.6,3.43215864]
[1753896842019,0.002,3810.7,3810.6,8.42303326]
[1753896842240,0.002,3810.7,3810.6,9.45409068]
[1753896843045,0.002,3810.7,3810.6,10.00409068]
[1753896844308,0.002,3810.7,3810.6,13.00409068]
[1753896846314,0.002,3810.7,3810.6,12.53979068]
[1753896847032,0.002,3810.7,3810.6,12.64493468]
[1753896847649,0.4631,3811.3,3810.9,2.62402689]
[1753896847948,0.4631,3811.3,3811.2,5.74315461]
[1753896848329,0.4631,3811.3,3811.2,5.87435461]
[1753896848951,0.4651,3811.6,3811.2,7.08795461]
[1753896849253,0.4631,3811.4,3811.2,6.62615461]
[1753896849465,0.4631,3811.4,3811.2,6.49495461]
[1753896849661,0.4631,3811.4,3811.3,0.1312]
[1753896849865,0.9387,3811.4,3811.3,0.1312]
[1753896850037,0.9407,3811.6,3811.3,0.1312]
[1753896850242,0.4651,3811.5,3811.3,0.1312]
[1753896850541,0.9407,3811.5,3811.3,0.1312]
[1753896850737,0.9407,3811.5,3811.3,3.42426983]
[1753896850937,0.9407,3811.5,3811.4,2.64994489]
[1753896850938,0.002,3811.5,3811.4,2.64994489]
[1753896851139,0.002,3811.5,3811.4,0.48803707]
[1753896851344,0.002,3811.5,3811.4,5.74315461]
[1753896851547,0.4651,3811.5,3811.4,6.65378665]
[1753896852968,0.002,3811.5,3811.4,6.65378665]
[1753896853189,0.002,3811.5,3811.4,7.11558665]
[1753896853375,0.002,3811.5,3811.4,6.65378665]
[1753896854347,0.002,3811.5,3811.4,9.27749447]
[1753896854842,0.002,3811.5,3811.4,6.65378665]
[1753896855473,0.002,3811.5,3811.4,9.73929447]
[1753896855694,0.002,3811.5,3811.4,7.11558665]
[1753896855830,0.002,3811.5,3811.4,9.73929447]
[1753896856030,0.002,3811.5,3811.4,7.11558665]
[1753896856671,0.002,3811.5,3811.4,6.65378665]
[1753896857264,0.002,3811.5,3811.4,10.70378665]
[1753896858079,0.9334,3811.5,3811.3,0.80051546]
[1753896858316,0.9314,3811.4,3811.3,0.1312]
[1753896860265,0.9314,3811.4,3811.3,5.87435461]
[1753896863896,0.4743,3811.4,3811.3,5.87435461]
[1753896864097,0.002,3811.5,3811.3,8.98112385]
[1753896864309,0.002,3811.5,3811.4,0.61367253]
[1753896864509,0.002,3811.5,3811.4,3.69414328]
[1753896864897,0.002,3811.6,3811.4,3.69414328]
[1753896864898,0.002,3811.6,3811.5,2.62363898]
[1753896865115,0.002,3811.6,3811.5,3.23783898]
[1753896865308,0.002,3811.6,3811.5,4.54163745]
[1753896866088,0.002,3811.6,3811.5,9.34607383]
[1753896866287,0.002,3811.6,3811.5,9.31983745]
[1753896869043,0.002,3811.8,3811.7,2.62350132]
[1753896869221,0.002,3811.8,3811.7,13.75539094]
[1753896869541,0.002,3811.8,3811.7,15.35629526]
[1753896870017,0.002,3811.8,3811.7,15.46140826]
[1753896871685,0.002,3811.8,3811.7,14.99770826]
[1753896875122,0.002,3811.8,3811.7,18.46140826]
[1753896875328,0.9334,3812.5,3812.4,2.62301962]
[1753896875329,0.4763,3812.5,3812.4,2.62301962]
[1753896875626,0.4763,3812.5,3812.4,16.97567619]
[1753896875627,0.002,3812.5,3812.4,16.97567619]
[1753896875809,0.002,3812.5,3812.4,18.05357619]
[1753896876123,0.04,3812.9,3812.8,3.17274443]
[1753896876325,0.04,3812.9,3812.8,13.11932648]
[1753896876525,0.04,3812.9,3812.8,13.90123254]
[1753896877024,0.04,3812.9,3812.8,15.45676054]
[1753896877220,0.04,3812.9,3812.8,18.45676054]
[1753896878823,0.5143,3812.9,3812.8,14.58261611]
[1753896879025,0.9714,3812.9,3812.8,14.58261611]
[1753896879226,0.04,3813.9,3812.8,14.58261611]
[1753896879227,0.9314,3813.6,3812.9,0.55]
[1753896879529,17.51882789,3813.0,3812.9,4.47647412]
[1753896879748,17.51882789,3813.0,3812.9,1.85379847]
[1753896879945,18.45022789,3813.0,3812.9,5.89879847]
[1753896880128,18.45022789,3813.0,3812.9,4.045]
[1753896880796,17.51882789,3813.0,3812.9,4.045]
[1753896880996,17.51882789,3813.0,3812.9,6.66767565]
[1753896881234,17.51882789,3813.0,3812.9,7.15067565]
[1753896881524,17.51882789,3813.0,3812.9,4.528]
[1753896881730,17.51882789,3813.0,3812.9,8.31128712]
[1753896882130,17.51882789,3813.0,3812.9,5.68861147]
[1753896882749,17.51882789,3813.0,3812.9,8.31128712]
[1753896883113,17.51882789,3813.0,3812.9,10.12388712]
[1753896883535,17.51882789,3813.0,3812.9,13.12388712]
[1753896884322,17.51882789,3813.0,3812.9,12.64088712]
[1753896884538,17.51882789,3813.0,3812.9,11.86128712]
[1753896884720,18.45022789,3813.0,3812.9,8.68861147]
[1753896884925,18.45022789,3813.0,3812.9,7.045]
[1753896885607,17.51882789,3813.0,3812.9,9.66767565]
[1753896885930,17.51882789,3813.0,3812.9,11.46657565]
[1753896886535,7.07799555,3813.0,3812.9,11.46657565]
[1753896886711,7.07799555,3813.0,3812.9,11.91757565]
[1753896886911,7.07799555,3813.0,3812.9,14.03785833]
[1753896888906,0.4506,3813.8,3813.7,2.62212549]
[1753896889138,0.4506,3813.8,3813.7,12.5394801]
[1753896890523,0.4506,3813.8,3813.7,9.91735461]
[1753896890726,0.9104,3813.8,3813.7,9.91735461]
[1753896891054,0.9104,3813.8,3813.7,12.5394801]
[1753896891248,0.9104,3813.8,3813.7,10.23754519]
[1753896892756,0.9104,3813.8,3813.7,12.85967068]
[1753896893063,0.04,3813.9,3813.7,12.85967068]
[1753896893465,0.9504,3813.9,3813.7,12.85967068]
[1753896893620,0.9504,3813.9,3813.8,2.62205674]
[1753896894046,0.4906,3813.9,3813.7,10.23754519]
[1753896894257,0.4998,3813.9,3813.7,10.23754519]
[1753896894468,0.9104,3813.8,3813.7,10.23754519]
[1753896895620,0.9104,3813.8,3813.7,4.68923874]
[1753896897451,0.9124,3813.8,3813.7,4.68923874]
[1753896897947,0.002,3813.8,3813.7,4.68923874]
[1753896898156,0.002,3813.8,3813.7,10.43239335]
[1753896898388,0.002,3813.8,3813.7,10.93169335]
[1753896898685,0.002,3813.8,3813.7,10.43239335]
[1753896898870,0.002,3813.8,3813.7,10.93169335]
[1753896899169,0.002,3813.8,3813.7,10.43239335]
[1753896899867,0.002,3813.8,3813.7,4.68923874]
[1753896899868,0.9124,3813.8,3813.7,4.68923874]
[1753896900566,1.6845,3813.8,3813.7,0.1312]
[1753896901441,0.002,3813.8,3813.7,0.1312]
[1753896901776,0.002,3813.8,3813.7,0.6305]
[1753896901975,0.002,3813.8,3813.7,0.1312]
[1753896902376,0.4526,3813.8,3813.7,0.1312]
[1753896902547,0.4526,3813.8,3813.7,1.12525766]
[1753896903078,0.002,3813.8,3813.7,3.74738315]
[1753896903266,0.002,3813.8,3813.7,1.12525766]
[1753896903473,0.9124,3813.8,3813.7,1.12525766]
[1753896903974,0.9124,3813.8,3813.7,0.1312]
[1753896906855,0.002,3813.8,3813.7,0.1312]
[1753896907076,0.002,3813.8,3813.7,0.15742125]
[1753896907260,0.002,3813.8,3813.7,0.1312]
[1753896907461,0.002,3813.8,3813.7,0.15742125]
[1753896907662,0.002,3813.8,3813.7,4.90209072]
[1753896908050,0.002,3813.8,3813.7,5.40139072]
[1753896908474,0.002,3813.8,3813.7,4.90209072]
[1753896910071,0.002,3813.8,3813.7,5.40139072]
[1753896910580,0.002,3813.8,3813.7,4.90209072]
[1753896912085,0.4526,3813.8,3813.7,4.90209072]
[1753896912383,0.002,3813.8,3813.7,12.42123746]
[1753896912583,0.002,3813.8,3813.7,12.84601621]
[1753896913883,0.002,3813.8,3813.7,12.39501621]
[1753896916423,0.002,3813.8,3813.7,7.85671621]
[1753896916585,0.9055,3813.8,3813.7,0.1312]
[1753896916785,1.693,3813.8,3813.7,0.1312]
[1753896918322,0.002,3813.8,3813.7,4.7182]
[1753896918624,0.002,3813.8,3813.7,11.66714674]
[1753896918842,0.002,3813.8,3813.7,7.7182]
[1753896918991,0.9055,3813.8,3813.7,7.1682]
[1753896920146,0.9055,3813.8,3813.7,0.1312]
[1753896920639,1.693,3813.8,3813.7,0.1312]
[1753896923596,0.7791,3813.7,3813.0,0.001]
[1753896923794,0.9035,3813.7,3813.5,0.1312]
[1753896923987,0.7791,3813.6,3813.5,0.1312]
[1753896924193,1.6826,3813.6,3813.5,0.1312]
[1753896927920,1.85506,3813.6,3813.0,0.001]
[1753896928131,1.04809394,3813.5,3813.0,0.001]
[1753896928355,0.8321,3813.4,3813.0,0.001]
[1753896928736,4.4687,3813.5,3813.0,0.001]
[1753896928737,0.8321,3813.2,3813.0,0.001]
[1753896928910,1.42381939,3813.2,3813.0,0.001]
[1753896929104,0.8321,3813.1,3813.0,0.001]
[1753896929440,1.7356,3813.1,3813.0,0.001]
[1753896931367,1.8668,3813.1,3813.0,0.001]
[1753896931963,4.88019394,3813.1,3813.0,0.001]
[1753896932282,0.55,3813.0,3812.9,0.001]
[1753896932547,11.725,3813.0,3812.9,0.001]
[1753896932748,11.2933,3813.0,3812.9,0.001]
[1753896932916,11.2532,3813.0,3812.9,0.001]
[1753896933112,11.725,3813.0,3812.9,0.001]
[1753896933353,14.0115975,3813.0,3812.9,0.001]
[1753896933946,44.0115975,3813.0,3812.9,0.001]
[1753896934145,14.0115975,3813.0,3812.9,0.001]
[1753896934345,44.0115975,3813.0,3812.9,0.001]
[1753896934564,44.0115975,3813.0,3812.6,0.001]
[1753896934565,0.7935,3812.9,3812.6,0.001]
[1753896934745,3.7935,3812.7,3812.6,0.001]
[1753896934927,10.9347,3812.7,3812.6,0.001]
[1753896935128,11.8382,3812.7,3812.6,0.001]
[1753896936083,0.7935,3812.6,3812.5,0.001]
[1753896936239,0.80689394,3812.6,3812.5,0.001]
[1753896936569,6.44050131,3812.6,3812.5,0.001]
[1753896936767,13.43710737,3812.6,3812.5,0.001]
[1753896937648,13.43710737,3812.6,3811.7,0.1312]
[1753896937649,59.999,3812.0,3811.7,0.1312]
[1753896937848,4.8515,3811.9,3811.7,0.1312]
[1753896938249,5.2832,3811.9,3811.7,0.1312]
[1753896939066,4.8515,3811.9,3811.7,0.1312]
[1753896939903,5.755,3811.9,3811.7,0.1312]
[1753896940396,0.9035,3811.8,3811.6,0.001]
[1753896940596,0.4317,3811.8,3811.6,0.1322]
[1753896940800,4.8515,3811.9,3811.6,0.1322]
[1753896941195,5.755,3811.9,3811.6,0.1322]
[1753896941714,0.4317,3811.8,3811.6,0.1322]
[1753896942483,0.4317,3811.7,3811.6,0.1322]
[1753896942669,4.8515,3811.9,3811.6,0.1322]
[1753896943215,4.8515,3811.9,3811.6,5.311084]
[1753896943369,0.8145,3811.9,3811.7,0.4765]
[1753896943703,4.037,3811.8,3811.6,5.311084]
[1753896944205,4.037,3811.8,3811.6,5.787584]
[1753896944806,0.4317,3811.7,3811.6,5.311084]
[1753896945378,4.5088,3811.8,3811.6,5.179884]
[1753896945581,0.9035,3811.7,3811.6,5.179884]
[1753896945911,0.4317,3811.7,3811.6,5.179884]
[1753896946084,4.5088,3811.8,3811.6,5.179884]
[1753896946273,4.037,3811.8,3811.6,5.179884]
[1753896946971,4.5025,3811.8,3811.6,5.179884]
[1753896947181,0.4655,3811.7,3811.6,5.179884]
[1753896947800,4.037,3811.8,3811.6,5.179884]
[1753896948005,0.8145,3811.9,3811.6,5.643484]
[1753896948212,4.037,3811.8,3811.6,5.643484]
[1753896949576,4.037,3811.8,3811.7,3.0]
[1753896950311,4.5025,3811.8,3811.7,3.0]
[1753896951983,4.037,3811.8,3811.6,5.179884]
[1753896952309,4.037,3811.8,3811.6,5.643484]
[1753896955520,0.8145,3811.9,3811.6,5.643484]
[1753896955720,0.8145,3811.9,3811.7,0.4636]
[1753896956013,0.8145,3811.9,3811.6,5.179884]
[1753896956218,4.036,3811.8,3811.7,0.9947084]
[1753896956385,4.036,3811.8,3811.7,0.6623084]
[1753896957213,59.999,3812.0,3811.7,1.1259084]
[1753896957415,4.036,3811.9,3811.7,7.31471878]
[1753896957712,4.036,3811.9,3811.8,2.25160028]
[1753896957920,4.036,3811.9,3811.8,2.38280028]
[1753896958482,4.036,3811.9,3811.8,1.92610028]
[1753896958683,4.036,3811.9,3811.8,0.1312]
[1753896959016,4.5015,3811.9,3811.8,0.1312]
[1753896959189,4.036,3811.9,3811.8,0.1312]
[1753896959785,4.96929394,3811.9,3811.6,5.179884]
[1753896960020,0.9199,3811.8,3811.6,5.179884]
[1753896960221,4.036,3811.7,3811.6,5.179884]
[1753896961000,4.9559,3811.7,3811.6,5.179884]
[1753896967226,4.036,3811.7,3811.6,5.179884]
[1753896967752,59.999,3812.0,3811.6,5.643484]
[1753896967950,4.035,3811.9,3811.6,6.100184]
[1753896968246,4.035,3811.9,3811.7,0.4636]
[1753896968543,4.035,3811.9,3811.8,0.5948]
[1753896968710,59.999,3812.0,3811.8,0.5948]
[1753896968910,4.035,3811.9,3811.8,0.5948]
[1753896969551,59.999,3812.0,3811.8,0.5948]
[1753896969848,4.035,3811.9,3811.8,1.0515]
[1753896970049,4.035,3811.9,3811.8,0.5879]
[1753896970249,4.035,3811.9,3811.8,0.1312]
[1753896970744,64.034,3812.0,3811.9,0.8292]
[1753896970927,64.034,3812.0,3811.9,1.7495]
[1753896971127,59.999,3812.0,3811.9,7.48161038]
[1753896971442,64.033,3812.0,3811.9,1.7495]
[1753896972848,64.033,3812.0,3811.9,3.35693467]
[1753896973626,59.999,3812.0,3811.9,3.35693467]
[1753896973837,64.033,3812.0,3811.9,3.35693467]
[1753896974020,64.033,3812.0,3811.9,2.90023467]
[1753896974230,64.033,3812.0,3811.9,3.35693467]
[1753896975249,59.999,3812.0,3811.9,3.35693467]
[1753896975612,64.033,3812.0,3811.9,3.35693467]
[1753896976443,64.032,3812.0,3811.9,9.08904505]
[1753896976809,64.032,3812.0,3811.9,11.71240872]
[1753896977648,64.032,3812.0,3811.9,5.96729834]
[1753896979027,59.5856,3812.0,3811.9,5.96729834]
[1753896979934,59.5856,3812.0,3811.9,10.00029834]
[1753896981131,59.5856,3812.0,3811.9,10.55029834]
[1753896982366,59.5856,3812.0,3811.9,6.46863467]
[1753896982538,59.5856,3812.0,3811.9,9.09199834]
[1753896982946,59.5856,3812.0,3811.9,9.57729834]
[1753896983557,59.5856,3812.0,3811.9,6.95393467]
[1753896983762,59.5856,3812.0,3811.9,9.57729834]
[1753896985258,59.5856,3812.0,3811.9,10.02099834]
[1753896985665,59.5856,3812.0,3811.9,10.57099834]
[1753896988859,59.5856,3812.0,3811.9,10.12729834]
[1753896989068,59.5856,3812.0,3811.9,15.85940872]
[1753896989440,60.5413,3812.0,3811.7,6.654435]
[1753896989642,59.5856,3812.0,3811.8,2.62343249]
[1753896990161,59.5856,3812.0,3811.8,2.62337184]
[1753896990343,59.5856,3812.0,3811.9,4.031]
[1753896990539,59.5856,3812.0,3811.9,6.09852314]
[1753896990750,59.5856,3812.0,3811.9,8.72188681]
[1753896991781,59.5856,3812.0,3811.9,6.09852314]
[1753896992070,59.5856,3812.0,3811.9,8.72188681]
[1753896992948,59.5856,3812.0,3811.9,9.20718681]
[1753896994440,59.5856,3812.0,3811.9,9.75718681]
[1753896994659,59.5856,3812.0,3811.9,10.95658681]
[1753896996233,59.5856,3812.0,3811.9,10.51288681]
[1753896996439,59.5856,3812.0,3811.9,10.95658681]
[1753896997877,59.5856,3812.0,3811.9,10.51288681]
[1753896998073,59.5856,3812.0,3811.9,16.24499719]
[1753896998974,47.69746048,3812.0,3811.9,16.24499719]
[1753896999175,47.69746048,3812.0,3811.9,16.68869719]
[1753896999374,46.14546048,3812.0,3811.9,16.81989719]
[1753897000645,0.002,3812.5,3812.4,9.70373]
[1753897000973,0.002,3812.5,3812.4,13.73373]
[1753897001142,0.002,3812.5,3812.4,13.86493]
[1753897001347,0.002,3812.5,3812.4,14.79393]
[1753897001939,0.002,3812.5,3812.4,17.79393]
[1753897002143,0.002,3812.5,3812.4,19.83563301]
[1753897002951,0.002,3812.5,3812.4,19.39193301]
[1753897003769,0.002,3812.5,3812.4,19.83563301]
[1753897005577,1e-08,3812.5,3812.4,19.83563301]
[1753897006981,1e-08,3812.5,3812.4,15.80563301]
[1753897007160,1e-08,3812.5,3812.4,13.17352263]
[1753897008162,1e-08,3812.5,3812.4,9.14452263]
[1753897008367,1e-08,3812.5,3812.4,13.17252263]
[1753897009189,1e-08,3812.5,3812.4,8.34592263]
[1753897009389,0.94040001,3812.5,3812.4,2.75421962]
[1753897009688,0.94040001,3812.5,3812.4,6.78221962]
[1753897009891,0.94040001,3812.5,3812.4,0.1312]
[1753897010091,0.94040001,3812.5,3812.4,4.1592]
[1753897010393,0.94040001,3812.5,3812.4,0.1312]
[1753897010595,1.11772001,3812.5,3812.4,0.1312]
[1753897011294,0.94040001,3812.5,3812.4,0.1312]
[1753897016781,1e-08,3812.5,3812.4,0.1312]
[1753897017075,0.94040001,3812.5,3812.4,0.1312]
[1753897017587,0.47220001,3812.5,3812.4,2.75421962]
[1753897018240,1e-08,3812.5,3812.4,2.75421962]
[1753897018432,1e-08,3812.5,3812.4,10.50771136]
[1753897018584,1e-08,3812.5,3812.4,11.30831136]
[1753897018922,1e-08,3812.5,3812.4,11.85831136]
[1753897019141,1e-08,3812.5,3812.4,12.30931136]
[1753897019436,1e-08,3812.5,3812.4,15.30931136]
[1753897022494,0.002,3812.9,3812.8,6.17274443]
[1753897022695,0.002,3812.9,3812.8,16.81004671]
[1753897022923,0.002,3812.9,3812.8,17.40034671]
[1753897023808,0.002,3812.9,3812.8,17.59550974]
[1753897025213,0.002,3812.9,3812.8,11.40329936]
[1753897025406,0.9424,3812.9,3812.8,11.40329936]
[1753897025599,0.002,3812.9,3812.8,17.13540974]
[1753897025804,0.002,3812.9,3812.8,17.59450974]
[1753897026004,0.002,3812.9,3812.8,17.13540974]
[1753897027010,0.002,3812.9,3812.8,17.59450974]
[1753897027216,0.002,3812.9,3812.8,17.13540974]
[1753897027534,0.002,3812.9,3812.8,17.59450974]
[1753897028834,0.002,3812.9,3812.8,17.69958874]
[1753897029548,0.002,3812.9,3812.8,17.24048874]